bitfinex/quotes_BTCUSD_20241023
["timestamp","ask_amount","ask_price","bid_price","bid_amount"]
[1729715212329,0.0450604,66431.0,66424.0,0.26208004]
[1729715212547,0.150534,66430.0,66425.0,0.150545]
[1729715213192,0.0450604,66431.0,66429.0,0.150536]
[1729715213399,0.0450604,66432.0,66427.0,0.11153304]
[1729715213615,0.19556523,66433.0,66428.0,0.150538]
[1729715214052,0.301052,66434.0,66428.0,0.150538]
[1729715214053,0.19556723,66432.0,66428.0,0.150538]
[1729715214314,0.04503723,66432.0,66427.0,0.11153304]
[1729715214526,0.06755584,66435.0,66431.0,0.150532]
[1729715214527,0.04503723,66435.0,66431.0,0.150532]
[1729715214971,0.22595636,66434.0,66415.0,0.005]
[1729715215187,0.301059,66432.0,66422.0,0.150551]
[1729715215425,0.301078,66428.0,66421.0,0.22595636]
[1729715215628,0.150541,66427.0,66421.0,0.37650836]
[1729715215839,0.150541,66427.0,66422.0,0.150551]
[1729715216069,0.150537,66429.0,66423.0,0.150548]
[1729715216549,0.150538,66428.0,66423.0,0.150548]
[1729715218661,0.301064,66431.0,66421.0,0.11153304]
[1729715218881,0.301077,66429.0,66421.0,0.11153304]
[1729715219131,0.451615,66429.0,66423.0,0.150549]
[1729715219344,0.150538,66429.0,66423.0,0.150549]
[1729715220293,0.04505522,66431.0,66421.0,0.11153304]
[1729715220619,0.150538,66429.0,66423.0,0.150549]
[1729715221290,0.150534,66430.0,66425.0,0.150545]
[1729715221930,0.150537,66429.0,66423.0,0.451648]
[1729715222153,0.150537,66429.0,66423.0,0.3011]
[1729715222836,0.34612322,66431.0,66422.0,0.22595636]
[1729715223038,0.150536,66430.0,66424.0,0.150547]
[1729715224787,0.150536,66430.0,66424.0,0.150545]
[1729715225003,0.151359,66430.0,66424.0,0.150545]
[1729715227365,0.151359,66430.0,66425.0,0.150544]
[1729715227859,0.146,66429.0,66425.0,0.150544]
[1729715228641,0.03,66427.0,66425.0,0.150544]
[1729715229159,0.03,66427.0,66426.0,0.0047092]
[1729715229359,0.03,66427.0,66425.0,0.150545]
[1729715229627,0.03,66427.0,66422.0,0.301102]
[1729715229828,0.03,66427.0,66424.0,0.150547]
[1729715230050,0.03,66427.0,66421.0,0.11153304]
[1729715230208,0.03,66427.0,66424.0,0.150547]
[1729715230372,0.03,66427.0,66423.0,0.150549]
[1729715230996,0.03,66427.0,66424.0,0.0047093]
[1729715231246,0.03,66427.0,66423.0,0.150549]
[1729715231542,0.03,66427.0,66422.0,0.301104]
[1729715231543,0.03,66427.0,66424.0,0.150547]
[1729715232099,0.146,66429.0,66424.0,0.150547]
[1729715232299,0.146,66429.0,66421.0,0.11153304]
[1729715232501,0.19106214,66429.0,66422.0,0.0047094]
[1729715232726,0.150538,66428.0,66423.0,0.0047094]
[1729715233081,0.19106214,66429.0,66420.0,0.001646]
[1729715233290,0.150544,66426.0,66421.0,0.00470945]
[1729715233491,0.15054,66428.0,66422.0,0.15526045]
[1729715233708,0.15054,66428.0,66423.0,0.00470945]
[1729715233957,0.15054,66428.0,66423.0,0.150549]
[1729715234180,0.146,66429.0,66423.0,0.150549]
[1729715234363,0.296537,66429.0,66423.0,0.150549]
[1729715234817,0.15054,66428.0,66421.0,0.56319304]
[1729715235021,0.15054,66428.0,66423.0,0.150549]
[1729715235227,0.15054,66428.0,66421.0,0.41264004]
[1729715235525,0.19106214,66429.0,66423.0,0.150548]
[1729715235742,0.34159914,66429.0,66422.0,0.301105]
[1729715235950,0.19106214,66429.0,66424.0,0.150547]
[1729715236177,0.19106214,66429.0,66422.0,0.301105]
[1729715236379,0.34160014,66429.0,66424.0,0.150547]
[1729715236585,0.04510151,66428.0,66424.0,0.150547]
[1729715237339,0.04510151,66428.0,66422.0,0.150552]
[1729715237547,0.04510151,66427.0,66423.0,0.00470945]
[1729715237774,0.04510151,66427.0,66421.0,0.41428604]
[1729715237979,0.04510151,66427.0,66423.0,0.150549]
[1729715238427,0.04510151,66427.0,66421.0,0.11317904]
[1729715238623,0.03,66424.0,66422.0,0.00470952]
[1729715238772,0.03,66424.0,66423.0,0.15055]
[1729715239175,0.04510151,66426.0,66423.0,0.15055]
[1729715239636,0.146,66429.0,66424.0,0.150547]
[1729715239637,0.04510151,66425.0,66424.0,0.150547]
[1729715240465,0.04510151,66426.0,66424.0,0.150547]
[1729715240687,0.04510151,66425.0,66424.0,0.150547]
[1729715241094,0.04510151,66425.0,66424.0,0.26678942]
[1729715241305,0.06765227,66427.0,66424.0,0.26678942]
[1729715241306,0.04515752,66427.0,66426.0,0.451628]
[1729715241522,0.06765227,66428.0,66427.0,0.150541]
[1729715241753,0.06765227,66428.0,66427.0,0.26207404]
[1729715242495,0.21365227,66429.0,66428.0,0.150538]
[1729715242961,0.146,66429.0,66428.0,0.15524709]
[1729715243483,0.176,66429.0,66428.0,0.15524709]
[1729715244302,0.176,66429.0,66428.0,0.150538]
[1729715244503,0.176,66429.0,66428.0,0.15524712]
[1729715244713,0.176,66429.0,66428.0,0.150538]
[1729715245031,0.176,66429.0,66428.0,0.15524712]
[1729715245265,0.22117079,66429.0,66428.0,0.15524705]
[1729715245915,0.146,66429.0,66428.0,0.26678009]
[1729715246324,0.146,66429.0,66428.0,0.15524705]
[1729715247005,0.146,66429.0,66428.0,0.26678009]
[1729715247378,0.146,66429.0,66428.0,0.15524705]
[1729715251015,0.146823,66429.0,66428.0,0.15524705]
[1729715252917,0.146823,66429.0,66428.0,0.00470905]
[1729715252918,0.297359,66429.0,66428.0,0.00470905]
[1729715253073,0.150546,66425.0,66421.0,0.22760236]
[1729715253688,0.150543,66427.0,66421.0,0.001646]
[1729715253888,0.150545,66426.0,66421.0,0.001646]
[1729715254200,0.301077,66428.0,66421.0,0.001646]
[1729715254546,0.150547,66425.0,66421.0,0.001646]
[1729715254742,0.301077,66428.0,66421.0,0.001646]
[1729715254944,0.150543,66426.0,66421.0,0.001646]
[1729715255376,0.150543,66426.0,66421.0,0.152199]
[1729715255568,0.150542,66427.0,66421.0,0.152199]
[1729715255692,0.301077,66428.0,66421.0,0.001646]
[1729715255893,0.150543,66426.0,66421.0,0.001646]
[1729715256095,0.150543,66426.0,66421.0,0.1522]
[1729715256304,0.301082,66427.0,66421.0,0.001646]
[1729715256509,0.150542,66427.0,66422.0,0.150551]
[1729715256705,0.150539,66428.0,66422.0,0.150552]
[1729715256913,0.146823,66429.0,66422.0,0.150552]
[1729715257131,0.150541,66427.0,66422.0,0.150552]
[1729715258685,0.146823,66429.0,66423.0,0.11153304]
[1729715258876,0.150539,66428.0,66423.0,0.26208104]
[1729715260863,0.146823,66429.0,66423.0,0.11153304]
[1729715261069,0.297361,66429.0,66424.0,0.150547]
[1729715261875,0.146823,66429.0,66426.0,0.11153304]
[1729715262116,0.06767821,66428.0,66426.0,0.11153304]
[1729715262499,0.21821721,66428.0,66426.0,0.11153304]
[1729715262856,0.21821721,66428.0,66423.0,0.26208204]
[1729715263102,0.36875721,66428.0,66421.0,0.001646]
[1729715263304,0.301082,66427.0,66421.0,0.001646]
[1729715263714,0.150546,66425.0,66421.0,0.001646]
[1729715264028,0.150549,66424.0,66421.0,0.001646]
[1729715264247,0.301082,66427.0,66421.0,0.001646]
[1729715264590,0.150548,66424.0,66421.0,0.001646]
[1729715264834,0.150551,66423.0,66421.0,0.001646]
[1729715265475,0.150546,66425.0,66421.0,0.001646]
[1729715265638,0.150549,66424.0,66421.0,0.001646]
[1729715266862,0.150546,66425.0,66421.0,0.001646]
[1729715267089,0.04511756,66424.0,66421.0,0.001646]
[1729715267322,0.19566556,66424.0,66421.0,0.001646]
[1729715267915,0.04511756,66424.0,66421.0,0.001646]
[1729715268581,0.19566556,66424.0,66421.0,0.001646]
[1729715268815,0.04511756,66424.0,66421.0,0.001646]
[1729715269471,0.04511756,66425.0,66421.0,0.001646]
[1729715269709,0.04511672,66425.0,66421.0,0.001646]
[1729715274094,0.04511672,66424.0,66421.0,0.001646]
[1729715274628,0.04511672,66425.0,66421.0,0.001646]
[1729715274830,0.36875709,66427.0,66421.0,0.001646]
[1729715274831,0.04511672,66424.0,66421.0,0.001646]
[1729715277767,0.06767509,66426.0,66421.0,0.001646]
[1729715277768,0.04511672,66423.0,66421.0,0.001646]
[1729715278648,0.21821909,66426.0,66421.0,0.001646]
[1729715278649,0.04511672,66424.0,66421.0,0.001646]
[1729715282271,0.04511672,66424.0,66422.0,0.00470964]
[1729715282475,0.04511672,66424.0,66421.0,0.001646]
[1729715282698,0.04511672,66424.0,66422.0,0.00470962]
[1729715282811,0.04511672,66424.0,66421.0,0.001646]
[1729715283014,0.04511672,66424.0,66422.0,0.00470963]
[1729715283221,0.04511672,66424.0,66421.0,0.001646]
[1729715283421,0.04511672,66424.0,66422.0,0.00470964]
[1729715283653,0.04511672,66424.0,66421.0,0.001646]
[1729715283862,0.04511672,66424.0,66422.0,0.00470962]
[1729715284063,0.04511672,66424.0,66421.0,0.001646]
[1729715284283,0.04511672,66424.0,66422.0,0.00470964]
[1729715284484,0.04511672,66424.0,66421.0,0.001646]
[1729715284712,0.04511672,66424.0,66422.0,0.00470964]
[1729715284937,0.04511672,66424.0,66421.0,0.001646]
[1729715285105,0.04511672,66424.0,66422.0,0.00470963]
[1729715285305,0.04594072,66424.0,66421.0,0.001646]
[1729715285564,0.04594072,66424.0,66422.0,0.00470963]
[1729715285683,0.04594072,66424.0,66421.0,0.001646]
[1729715285896,0.04594072,66424.0,66422.0,0.00470963]
[1729715286143,0.04594072,66424.0,66421.0,0.001646]
[1729715286345,0.150552,66422.0,66421.0,0.001646]
[1729715286545,0.04594072,66424.0,66421.0,0.00635566]
[1729715286721,0.04511672,66423.0,66421.0,0.001646]
[1729715286938,0.04594072,66424.0,66421.0,0.001646]
[1729715287345,0.04511672,66423.0,66421.0,0.001646]
[1729715290596,0.04508122,66423.0,66421.0,0.001646]
[1729715292557,0.04508122,66422.0,66421.0,0.001646]
[1729715292731,0.04508122,66422.0,66421.0,0.00635569]
[1729715293339,0.06762183,66423.0,66421.0,0.00635569]
[1729715293514,0.06762183,66423.0,66421.0,0.001646]
[1729715297361,0.06762183,66423.0,66422.0,0.00470964]
[1729715297587,0.06762183,66423.0,66421.0,0.001646]
[1729715297790,0.06767863,66423.0,66421.0,0.001646]
[1729715298596,0.06767863,66423.0,66422.0,0.00470964]
[1729715299071,0.06850263,66424.0,66422.0,0.00470964]
[1729715299272,0.06850263,66424.0,66421.0,0.001646]
[1729715299563,0.06850263,66424.0,66422.0,0.00470959]
[1729715299812,0.06850263,66424.0,66421.0,0.001646]
[1729715300078,0.06850263,66424.0,66422.0,0.00470959]
[1729715300330,0.06850263,66424.0,66421.0,0.001646]
[1729715300563,0.06767863,66423.0,66422.0,0.00470962]
[1729715301283,0.06767863,66423.0,66422.0,0.00470965]
[1729715301511,0.06769898,66423.0,66422.0,0.00470965]
[1729715301955,0.06852298,66424.0,66422.0,0.00470965]
[1729715302185,0.06852298,66424.0,66421.0,0.001646]
[1729715302451,0.06769898,66423.0,66422.0,0.00470962]
[1729715302731,0.0677116,66423.0,66422.0,0.00470962]
[1729715304663,0.0685356,66424.0,66422.0,0.00470962]
[1729715304890,0.0685356,66424.0,66423.0,0.00470962]
[1729715305368,0.000824,66424.0,66421.0,0.001646]
[1729715305615,0.06769076,66423.0,66422.0,0.0047096]
[1729715305835,0.06851476,66424.0,66422.0,0.0047096]
[1729715306068,0.06851476,66424.0,66421.0,0.001646]
[1729715306069,0.06769076,66423.0,66421.0,0.001646]
[1729715306309,0.06851476,66424.0,66422.0,0.00470958]
[1729715306545,0.06851476,66424.0,66423.0,0.00470958]
[1729715306777,0.06851476,66424.0,66423.0,0.11624262]
[1729715307032,0.06851476,66424.0,66423.0,0.45542566]
[1729715307283,0.06851476,66424.0,66423.0,0.46296037]
[1729715307284,0.000824,66424.0,66423.0,0.46296037]
[1729715307520,0.000824,66424.0,66423.0,0.55796037]
[1729715307800,0.000824,66424.0,66423.0,0.44642733]
[1729715308063,0.000824,66424.0,66423.0,0.45028027]
[1729715308308,0.000824,66424.0,66423.0,0.44274556]
[1729715309278,0.000824,66424.0,66423.0,0.45027979]
[1729715310480,0.000824,66424.0,66423.0,0.44274556]
[1729715310707,0.000824,66424.0,66423.0,0.45027979]
[1729715310934,0.000824,66424.0,66423.0,0.44274556]
[1729715311180,0.000824,66424.0,66423.0,0.45027979]
[1729715311406,0.000824,66424.0,66423.0,0.44274556]
[1729715312899,0.000824,66424.0,66423.0,0.59324937]
[1729715313151,0.000824,66424.0,66423.0,0.70478241]
[1729715313400,0.000824,66424.0,66423.0,0.70978241]
[1729715313894,0.000824,66424.0,66423.0,0.59824937]
[1729715316304,0.000824,66424.0,66423.0,0.59353979]
[1729715316570,0.000824,66424.0,66423.0,0.59824852]
[1729715320155,0.000824,66424.0,66423.0,0.59824857]
[1729715327210,0.091647,66429.0,66428.0,0.150538]
[1729715327440,0.091647,66429.0,66428.0,0.26677982]
[1729715329294,0.091647,66429.0,66428.0,0.26207104]
[1729715329509,0.091647,66429.0,66428.0,0.2667799]
[1729715330812,0.0914658,66429.0,66428.0,0.2667799]
[1729715331475,0.0914658,66429.0,66428.0,0.26677992]
[1729715335377,0.0914658,66429.0,66428.0,0.26677982]
[1729715336421,0.0914658,66429.0,66428.0,0.27431387]
[1729715337095,0.0914658,66429.0,66428.0,0.26677982]
[1729715337299,0.0914658,66429.0,66428.0,0.27431401]
[1729715339584,0.0914658,66429.0,66428.0,0.26677982]
[1729715340658,0.0914658,66429.0,66428.0,0.27431384]
[1729715341871,0.0914658,66429.0,66428.0,0.27431382]
[1729715345435,0.0914658,66429.0,66428.0,0.26207104]
[1729715345630,0.0914658,66429.0,66428.0,0.27431383]
[1729715347746,0.0914658,66429.0,66428.0,0.16278079]
[1729715347984,0.0914658,66429.0,66428.0,0.27431383]
[1729715349660,0.0914658,66429.0,66428.0,0.27431382]
[1729715351235,0.0914658,66429.0,66428.0,0.01224278]
[1729715351236,0.4156018,66429.0,66428.0,0.01224278]
[1729715351448,0.150547,66424.0,66423.0,0.001646]
[1729715351695,0.324147,66424.0,66423.0,0.001646]
[1729715351927,0.60213656,66424.0,66423.0,0.001646]
[1729715352815,0.75764037,66424.0,66423.0,0.001646]
[1729715353023,1.07727704,66424.0,66423.0,0.001646]
[1729715353233,1.08727704,66424.0,66423.0,0.001646]
[1729715353445,1.23923687,66424.0,66423.0,0.001646]
[1729715353891,1.08727704,66424.0,66423.0,0.001646]
[1729715354113,1.08701652,66424.0,66423.0,0.001646]
[1729715354550,1.09097691,66424.0,66423.0,0.001646]
[1729715355032,0.165552,66422.0,66420.0,0.001646]
[1729715355245,0.82398467,66422.0,66420.0,0.001646]
[1729715355455,0.91271213,66422.0,66420.0,0.001646]
[1729715355886,0.77785181,66422.0,66420.0,0.001646]
[1729715356144,0.88938485,66422.0,66420.0,0.001646]
[1729715356360,1.03988866,66422.0,66420.0,0.001646]
[1729715358835,1.03937714,66422.0,66420.0,0.001646]
[1729715360314,1.15152154,66422.0,66420.0,0.001646]
[1729715360525,1.03937714,66422.0,66420.0,0.001646]
[1729715360881,0.97859023,66422.0,66420.0,0.001646]
[1729715361313,0.88887333,66422.0,66420.0,0.001646]
[1729715361508,0.72318885,66422.0,66420.0,0.001646]
[1729715362519,0.79044991,66422.0,66420.0,0.001646]
[1729715363803,0.79043854,66422.0,66420.0,0.001646]
[1729715364467,0.72318885,66422.0,66420.0,0.001646]
[1729715365151,0.87369266,66422.0,66420.0,0.001646]
[1729715365367,0.91851066,66422.0,66420.0,0.001646]
[1729715365568,0.87369266,66422.0,66420.0,0.001646]
[1729715366186,0.72318885,66422.0,66420.0,0.001646]
[1729715381820,0.40605581,66422.0,66420.0,0.001646]
[1729715386327,0.45221293,66422.0,66420.0,0.001646]
[1729715387202,0.48021293,66422.0,66420.0,0.001646]
[1729715387617,0.48521293,66422.0,66420.0,0.001646]
[1729715388293,0.53003133,66422.0,66420.0,0.001646]
[1729715389322,0.48521293,66422.0,66420.0,0.001646]
[1729715390392,0.55244053,66422.0,66420.0,0.001646]
[1729715391275,0.65110533,66422.0,66420.0,0.001646]
[1729715392790,0.65116263,66422.0,66420.0,0.001646]
[1729715393381,0.76355185,66422.0,66420.0,0.001646]
[1729715394416,0.65116263,66422.0,66420.0,0.001646]
[1729715394884,0.76368629,66422.0,66420.0,0.001646]
[1729715395274,0.65116263,66422.0,66420.0,0.001646]
[1729715395681,0.67959876,66422.0,66420.0,0.001646]
[1729715395892,0.61819687,66422.0,66420.0,0.001646]
[1729715397674,0.45224717,66422.0,66420.0,0.001646]
[1729715397937,0.61871194,66422.0,66420.0,0.001646]
[1729715400563,0.31701677,66422.0,66420.0,0.001646]
[1729715400799,0.16646477,66422.0,66421.0,0.11317904]
[1729715401320,0.16646477,66422.0,66421.0,0.001646]
[1729715401739,0.27926689,66422.0,66421.0,0.001646]
[1729715401952,0.27926689,66422.0,66421.0,0.1522]
[1729715402177,0.09850951,66423.0,66422.0,0.321752]
[1729715402378,0.030824,66423.0,66422.0,0.321752]
[1729715402810,0.030824,66423.0,66422.0,0.43328504]
[1729715403004,0.030824,66423.0,66422.0,0.321752]
[1729715403212,0.030824,66423.0,66422.0,0.33399558]
[1729715403636,0.030824,66423.0,66422.0,0.32646107]
[1729715403867,0.030824,66423.0,66422.0,0.321752]
[1729715404715,0.030824,66423.0,66422.0,0.43328504]
[1729715406408,0.030824,66423.0,66422.0,0.58378885]
[1729715407249,0.000824,66423.0,66422.0,0.58378885]
[1729715407682,0.000824,66423.0,66422.0,0.69532189]
[1729715409505,0.000824,66423.0,66422.0,0.70032189]
[1729715410640,0.000824,66423.0,66422.0,0.71032189]
[1729715410841,0.000824,66423.0,66422.0,0.71703049]
[1729715411248,0.000824,66423.0,66422.0,0.60349745]
[1729715413353,0.000824,66423.0,66422.0,0.60349747]
[1729715414405,0.000824,66423.0,66422.0,0.231352]
[1729715415485,0.000824,66423.0,66422.0,0.150552]
[1729715418424,0.000824,66423.0,66422.0,0.26208504]
[1729715428244,0.000824,66423.0,66422.0,0.2667942]
[1729715428928,0.000824,66423.0,66421.0,0.001646]
[1729715429156,0.000824,66423.0,66421.0,0.152199]
[1729715429609,0.000824,66423.0,66422.0,0.150552]
[1729715430843,0.000824,66423.0,66422.0,0.26208504]
[1729715432437,0.000824,66423.0,66422.0,0.26679442]
[1729715433810,0.000824,66423.0,66422.0,0.26844242]
[1729715442118,0.000824,66423.0,66422.0,0.26373304]
[1729715442376,0.000824,66423.0,66422.0,0.26844238]
[1729715446124,0.000824,66423.0,66422.0,0.26844229]
[1729715453703,0.000824,66423.0,66422.0,0.26844226]
[1729715454378,0.000824,66423.0,66422.0,0.15690922]
[1729715454617,0.000824,66423.0,66422.0,0.26844226]
[1729715461802,0.000824,66423.0,66422.0,0.45818617]
[1729715461991,0.000824,66423.0,66422.0,0.61067911]
[1729715462238,0.000824,66423.0,66422.0,0.75471926]
[1729715462655,0.000824,66423.0,66422.0,0.71711299]
[1729715463093,0.0914658,66429.0,66428.0,0.37360408]
[1729715463310,0.0914658,66429.0,66428.0,0.37624181]
[1729715463524,0.0914658,66429.0,66428.0,0.49248318]
[1729715463735,0.0914658,66429.0,66428.0,0.50001652]
[1729715464481,0.0914658,66429.0,66428.0,0.23797967]
[1729715464699,0.0914658,66429.0,66428.0,0.34197937]
[1729715467014,0.0914658,66429.0,66428.0,0.34197961]
[1729715470309,0.0914658,66429.0,66428.0,0.45351265]
[1729715470752,0.0914658,66429.0,66428.0,0.44880408]
[1729715470965,0.0914658,66429.0,66428.0,0.34197961]
[1729715471189,0.0914658,66429.0,66428.0,0.33727104]
[1729715471625,0.0914658,66429.0,66428.0,0.34197967]
[1729715473142,0.0914658,66429.0,66428.0,0.26677967]
[1729715474490,0.0914658,66429.0,66428.0,0.26677976]
[1729715479558,0.0914658,66429.0,66428.0,0.00470872]
[1729715479777,0.0864658,66429.0,66428.0,0.00470872]
[1729715480642,0.0864658,66429.0,66428.0,0.15524672]
[1729715481549,0.0864658,66429.0,66428.0,0.150538]
[1729715481760,0.0864658,66429.0,66428.0,0.26677994]
[1729715495105,0.0864658,66429.0,66428.0,0.1552469]
[1729715497916,0.0864658,66429.0,66428.0,0.15524683]
[1729715501859,0.0864658,66429.0,66428.0,0.15524688]
[1729715502559,0.0864658,66429.0,66428.0,0.26677992]
[1729715503718,0.0864658,66429.0,66428.0,0.26842592]
[1729715506049,0.0864658,66429.0,66428.0,0.26842591]
[1729715507151,0.0864658,66429.0,66428.0,0.37995895]
[1729715507378,0.0864658,66429.0,66428.0,0.45825895]
[1729715508113,0.0864658,66429.0,66428.0,0.4657926]
[1729715508594,0.0864658,66429.0,66428.0,0.61629641]
[1729715508839,0.0864658,66429.0,66428.0,0.71229641]
[1729715509114,0.0864658,66429.0,66428.0,0.78390103]
[1729715509364,0.0864658,66429.0,66428.0,0.80645736]
[1729715509616,0.0864658,66429.0,66428.0,0.78387425]
[1729715509859,0.0864658,66429.0,66428.0,0.70398953]
[1729715510114,0.0864658,66429.0,66428.0,0.71623069]
[1729715510342,0.0864658,66429.0,66428.0,0.78386065]
[1729715510861,0.04515508,66449.0,66448.0,0.150493]
[1729715511125,0.22595636,66455.0,66454.0,0.15048]
[1729715511376,0.22595636,66455.0,66454.0,0.26672118]
[1729715511617,0.22595636,66462.0,66454.0,0.26672118]
[1729715511618,0.22595636,66462.0,66461.0,0.150464]
[1729715511864,0.150451,66467.0,66460.0,0.150465]
[1729715512117,0.150449,66468.0,66461.0,0.11153304]
[1729715512353,0.0185,66469.0,66464.0,0.37352308]
[1729715512589,0.0185,66469.0,66464.0,0.26199004]
[1729715513044,0.00067182,66465.0,66464.0,0.26199004]
[1729715521021,0.00067182,66465.0,66464.0,0.37352308]
[1729715521286,0.00067182,66465.0,66464.0,0.26199004]
[1729715522278,0.00067182,66465.0,66464.0,0.37352308]
[1729715523212,0.00067182,66465.0,66464.0,0.26199004]
[1729715523439,0.00067182,66465.0,66464.0,0.60243561]
[1729715523683,0.00067182,66465.0,66464.0,0.61442689]
[1729715523921,0.00067182,66465.0,66464.0,0.49606607]
[1729715524151,0.00067182,66465.0,66464.0,0.71913215]
[1729715524638,0.00067182,66465.0,66464.0,0.72113215]
[1729715524901,0.000824,66476.0,66470.0,0.005]
[1729715525144,0.000824,66476.0,66475.0,0.37696504]
[1729715525375,0.000824,66476.0,66475.0,0.65274258]
[1729715525886,0.000824,66476.0,66475.0,0.76427562]
[1729715526111,0.000823,66487.0,66475.0,0.76427562]
[1729715526112,0.000823,66487.0,66486.0,0.37847308]
[1729715526364,0.000823,66487.0,66486.0,0.65633315]
[1729715526592,0.000823,66487.0,66486.0,0.70399341]
[1729715527562,0.000823,66487.0,66486.0,0.76833315]
[1729715527806,0.000823,66487.0,66486.0,0.81599341]
[1729715528032,0.000823,66487.0,66486.0,0.82069705]
[1729715528259,0.000823,66487.0,66486.0,0.81599341]
[1729715528745,0.000853,66494.0,66486.0,0.81599341]
[1729715528746,0.000853,66494.0,66489.0,0.017]
[1729715528968,0.000853,66494.0,66489.0,0.46857128]
[1729715529194,0.000853,66494.0,66489.0,0.46356407]
[1729715530133,0.000853,66494.0,66489.0,0.54076407]
[1729715530595,0.008409,66500.0,66499.0,0.32420034]
[1729715531342,0.008409,66500.0,66499.0,0.40140034]
[1729715532565,0.008409,66500.0,66499.0,0.57522268]
[1729715532790,0.008409,66500.0,66499.0,0.55190415]
[1729715533235,0.008409,66500.0,66499.0,0.72572649]
[1729715533509,0.008409,66500.0,66499.0,0.769722]
[1729715533739,0.008409,66500.0,66499.0,0.73072649]
[1729715533968,0.008409,66500.0,66499.0,0.774722]
[1729715536061,0.008409,66500.0,66499.0,0.77863828]
[1729715537271,0.008409,66500.0,66499.0,0.7833413]
[1729715538150,0.008409,66500.0,66499.0,0.43569662]
[1729715538382,0.008409,66500.0,66499.0,0.7833413]
[1729715538866,0.009232,66500.0,66499.0,0.73934579]
[1729715539090,0.009232,66500.0,66499.0,0.7833413]
[1729715540035,0.001,66510.0,66509.0,0.150355]
[1729715540256,0.001,66510.0,66509.0,0.47468115]
[1729715540488,0.001,66510.0,66509.0,0.47938417]
[1729715540720,0.001,66510.0,66509.0,0.52337968]
[1729715541204,0.001,66510.0,66509.0,0.93345536]
[1729715541422,0.62615436,66534.0,66509.0,0.93345536]
[1729715541423,0.32555636,66534.0,66530.0,0.17382234]
[1729715541646,0.150305,66531.0,66530.0,0.17382234]
[1729715541891,0.0996,66534.0,66530.0,0.17382234]
[1729715542120,0.151156,66532.0,66530.0,0.17382234]
[1729715542338,0.000852,66532.0,66530.0,0.17382234]
[1729715543019,0.000852,66532.0,66531.0,0.22595636]
[1729715543270,0.000852,66532.0,66531.0,0.150305]
[1729715543476,0.000852,66532.0,66530.0,0.17382234]
[1729715543751,0.000852,66532.0,66530.0,0.32412934]
[1729715543958,0.000852,66532.0,66531.0,0.150305]
[1729715544199,0.000852,66532.0,66531.0,0.37626136]
[1729715544447,0.000852,66532.0,66531.0,0.150305]
[1729715545465,0.000852,66532.0,66531.0,0.34780999]
[1729715545717,0.000852,66532.0,66531.0,0.30551011]
[1729715546890,0.000852,66532.0,66531.0,0.53146647]
[1729715547142,0.000852,66532.0,66531.0,0.0047013]
[1729715547826,0.000852,66532.0,66527.0,0.15416143]
[1729715548327,0.000852,66532.0,66528.0,0.00470177]
[1729715548566,0.000852,66532.0,66527.0,0.15416143]
[1729715548567,0.000852,66532.0,66527.0,0.00384743]
[1729715548813,0.000852,66532.0,66529.0,0.15031]
[1729715549053,0.000852,66532.0,66527.0,0.00384743]
[1729715549054,0.000852,66532.0,66530.0,0.00470169]
[1729715549291,0.000852,66532.0,66526.0,0.22595636]
[1729715549292,0.000852,66532.0,66528.0,0.150311]
[1729715549521,0.000852,66532.0,66514.0,0.002]
[1729715549522,0.000852,66532.0,66529.0,0.00470168]
[1729715549765,0.000852,66532.0,66530.0,0.00470168]
[1729715550009,0.000852,66532.0,66527.0,0.22595636]
[1729715550242,0.000852,66532.0,66528.0,0.00470174]
[1729715550243,0.151156,66532.0,66528.0,0.00470174]
[1729715550457,0.000852,66532.0,66529.0,0.00470174]
[1729715550704,0.000852,66532.0,66527.0,0.22595636]
[1729715550919,0.000852,66532.0,66528.0,0.0047019]
[1729715551162,0.000852,66532.0,66527.0,0.22595636]
[1729715551452,0.000852,66532.0,66524.0,0.300642]
[1729715551453,0.15031,66529.0,66528.0,0.0047019]
[1729715551708,0.15031,66529.0,66515.0,0.300683]
[1729715551709,0.15031,66529.0,66515.0,0.22595636]
[1729715551710,0.150339,66516.0,66515.0,0.22595636]
[1729715552448,0.150345,66514.0,66508.0,0.22595636]
[1729715552744,0.150347,66513.0,66509.0,0.0047033]
[1729715552911,0.47447534,66522.0,66509.0,0.0047033]
[1729715552912,0.17382234,66522.0,66509.0,0.0047033]
[1729715553178,0.15033,66521.0,66510.0,0.3129333]
[1729715553428,0.150333,66519.0,66512.0,0.150347]
[1729715553668,0.150335,66518.0,66513.0,0.0122283]
[1729715553900,0.150335,66518.0,66514.0,0.0122283]
[1729715554117,0.150335,66518.0,66511.0,0.150351]
[1729715554118,0.150335,66518.0,66515.0,0.0047033]
[1729715554343,0.17382234,66524.0,66516.0,0.0047033]
[1729715554610,0.150329,66521.0,66517.0,0.0047033]
[1729715554850,0.17382234,66524.0,66518.0,0.01222777]
[1729715554851,0.150326,66522.0,66518.0,0.01222777]
[1729715555099,0.150329,66521.0,66519.0,0.0047033]
[1729715555577,0.150329,66521.0,66520.0,0.00470297]
[1729715555830,0.150329,66521.0,66515.0,0.22595636]
[1729715556069,0.150329,66521.0,66516.0,0.0122275]
[1729715556314,0.150332,66520.0,66517.0,0.0122275]
[1729715556566,0.150332,66520.0,66518.0,0.0075246]
[1729715556811,0.150332,66520.0,66519.0,0.0047029]
[1729715557045,0.150332,66520.0,66519.0,0.00470289]
[1729715558913,0.32415434,66520.0,66519.0,0.00470289]
[1729715559397,0.64848049,66520.0,66519.0,0.00470289]
[1729715559647,0.150355,66509.0,66507.0,8.482e-05]
[1729715559869,0.32417734,66509.0,66507.0,8.482e-05]
[1729715560410,0.150357,66508.0,66507.0,8.482e-05]
[1729715560649,0.38416081,66508.0,66507.0,8.482e-05]
[1729715560875,0.47976081,66508.0,66507.0,8.482e-05]
[1729715561586,0.50476081,66508.0,66507.0,8.482e-05]
[1729715561824,0.155375,66500.0,66475.0,0.04066847]
[1729715562076,0.155375,66500.0,66473.0,0.22595636]
[1729715562077,0.85982349,66500.0,66473.0,0.22595636]
[1729715562307,0.96982349,66500.0,66473.0,0.22595636]
[1729715562537,0.96982349,66500.0,66474.0,0.0075286]
[1729715562787,0.96982349,66500.0,66475.0,0.0075286]
[1729715563018,0.96982349,66500.0,66473.0,0.22595636]
[1729715563019,0.150409,66485.0,66473.0,0.22595636]